bitfinex-derivatives/quotes_BNBF0:USTF0_20250511
["timestamp","ask_amount","ask_price","bid_price","bid_amount"]
[1746933207945,2.1822215,664.81,663.43,1.668]
[1746933208145,0.24628756,664.8,663.43,1.668]
[1746933208548,0.24628756,664.79,663.43,1.668]
[1746933208951,0.24628756,664.78,663.43,1.668]
[1746933209252,0.24628756,664.77,663.43,1.668]
[1746933209548,0.24628756,664.76,663.43,1.668]
[1746933210152,0.24628756,664.75,663.43,1.668]
[1746933210548,0.24628756,664.74,663.43,1.668]
[1746933210953,0.24628756,664.73,663.43,1.668]
[1746933211250,0.24628756,664.72,663.43,1.668]
[1746933211556,0.24628756,664.71,663.43,1.668]
[1746933211855,0.24628756,664.7,663.43,1.668]
[1746933212254,0.24628756,664.77,663.43,1.668]
[1746933212456,1.93593394,664.71,663.43,1.668]
[1746933212854,0.24628756,664.7,663.43,1.668]
[1746933213555,0.24628756,664.7,663.44,0.30145906]
[1746933215054,0.24628756,664.69,663.44,0.30145906]
[1746933215359,0.24628756,664.68,663.44,0.30145906]
[1746933216062,0.24628756,664.67,663.44,0.30145906]
[1746933216259,0.24628756,664.67,663.45,0.469]
[1746933216556,1.93593394,664.85,663.46,0.634]
[1746933216859,0.24636702,664.66,663.46,0.634]
[1746933217056,0.24636702,664.84,663.46,0.634]
[1746933217262,0.24636702,664.84,663.47,0.736]
[1746933217463,0.24636702,664.83,663.47,0.736]
[1746933217767,0.24636702,664.82,663.47,0.736]
[1746933217959,0.24636702,664.82,663.48,0.30144088]
[1746933218159,0.24636702,664.81,663.48,0.30144088]
[1746933218463,0.24636702,664.8,663.48,0.30144088]
[1746933218763,0.24636702,664.79,663.48,0.30144088]
[1746933219261,0.24636702,664.78,663.48,0.30144088]
[1746933219561,0.24636702,664.77,663.48,0.30144088]
[1746933219865,0.24636702,664.76,663.48,0.30144088]
[1746933220366,0.24636702,664.75,663.48,0.30144088]
[1746933220566,0.24636702,664.74,663.48,0.30144088]
[1746933220968,0.24636702,664.73,663.48,0.30144088]
[1746933221269,0.24636702,664.95,663.48,0.30144088]
[1746933221568,0.24636702,664.94,663.48,0.30144088]
[1746933222070,0.24636702,664.93,663.48,0.30144088]
[1746933223071,1.93593394,664.99,663.48,0.30144088]
[1746933223467,0.24634424,664.98,663.48,0.30144088]
[1746933223865,1.93593394,664.82,663.48,0.30144088]
[1746933224365,0.24633796,664.81,663.48,0.30144088]
[1746933224971,0.24633796,664.8,663.48,0.30144088]
[1746933225270,0.24633796,664.79,663.48,0.30144088]
[1746933225771,0.24633796,664.78,663.48,0.30144088]
[1746933226166,0.24633796,664.77,663.48,0.30144088]
[1746933226571,0.24633796,664.76,663.48,0.30144088]
[1746933227069,0.24633796,664.75,663.48,0.30144088]
[1746933227373,0.24633796,664.74,663.48,0.30144088]
[1746933227673,0.24633796,664.73,663.48,0.30144088]
[1746933228269,1.93593394,664.81,663.48,0.30144088]
[1746933228270,0.24633796,664.72,663.48,0.30144088]
[1746933228468,1.93593394,664.58,663.48,0.30144088]
[1746933229173,0.24633796,664.57,663.48,0.30144088]
[1746933229475,0.24633796,664.56,663.48,0.30144088]
[1746933229876,0.24633796,664.57,663.48,0.30144088]
[1746933233077,0.24633796,665.11,663.48,0.30144088]
[1746933233377,0.24633796,665.1,663.48,0.30144088]
[1746933233873,0.24633796,665.09,663.48,0.30144088]
[1746933234074,0.24633796,665.08,663.48,0.30144088]
[1746933234473,0.24633796,665.07,663.48,0.30144088]
[1746933234778,0.24633796,665.06,663.48,0.30144088]
[1746933235078,0.26199098,665.35,663.48,0.30144088]
[1746933235079,0.24633796,665.05,663.48,0.30144088]
[1746933235479,0.24633796,665.04,663.48,0.30144088]
[1746933235777,0.24633796,665.03,663.48,0.30144088]
[1746933236180,0.24633796,665.02,663.48,0.30144088]
[1746933236479,0.24633796,665.01,663.48,0.30144088]
[1746933236879,0.24633796,665.0,663.48,0.30144088]
[1746933237182,0.24633796,664.99,663.48,0.30144088]
[1746933237779,0.24633796,664.98,663.48,0.30144088]
[1746933238480,0.24633796,664.97,663.48,0.30144088]
[1746933238881,0.24633796,664.96,663.48,0.30144088]
[1746933239180,0.24633796,664.95,663.48,0.30144088]
[1746933239682,0.24633796,664.94,663.48,0.30144088]
[1746933240179,0.24633796,664.93,663.48,0.30144088]
[1746933240481,0.24633796,664.92,663.48,0.30144088]
[1746933240783,0.24633796,664.91,663.48,0.30144088]
[1746933240984,0.24633796,664.91,663.49,0.652]
[1746933241182,0.24633796,664.9,663.49,0.652]
[1746933241483,0.24633796,664.9,663.51,0.30142725]
[1746933241683,0.24633796,664.89,663.51,0.30142725]
[1746933241979,0.24633796,664.88,663.51,0.30142725]
[1746933242384,0.24633796,664.87,663.51,0.30142725]
[1746933242785,0.24633796,664.86,663.51,0.30142725]
[1746933243086,0.24633796,664.85,663.51,0.30142725]
[1746933243485,0.24633796,664.84,663.51,0.30142725]
[1746933243886,0.24633796,664.83,663.51,0.30142725]
[1746933244285,0.24633796,664.82,663.51,0.30142725]
[1746933244782,0.24633796,664.81,663.51,0.30142725]
[1746933245187,0.24633796,664.8,663.51,0.30142725]
[1746933245483,0.24633796,664.79,663.51,0.30142725]
[1746933245690,1.93593394,664.6,663.51,0.30142725]
[1746933246087,0.24633796,664.59,663.52,0.708]
[1746933246289,0.24633796,664.59,663.54,0.30141362]
[1746933246591,0.24633796,664.58,663.54,0.30141362]
[1746933246891,0.24633796,664.57,663.54,0.30141362]
[1746933247095,0.24633796,664.57,663.55,0.634]
[1746933247392,0.24633796,664.56,663.57,0.3014]
[1746933247593,0.24633796,664.55,663.57,0.3014]
[1746933247893,0.24633796,664.59,663.57,0.3014]
[1746933248094,0.26203734,665.35,663.57,0.3014]
[1746933248095,1.93593394,664.75,663.57,0.3014]
[1746933248489,0.24627655,664.74,663.57,0.3014]
[1746933248894,0.24627655,664.73,663.57,0.3014]
[1746933249196,0.24627655,664.72,663.57,0.3014]
[1746933249594,0.24627655,664.71,663.57,0.3014]
[1746933249995,0.24627655,664.7,663.57,0.3014]
[1746933250394,0.24627655,664.69,663.57,0.3014]
[1746933250790,0.24627655,664.68,663.57,0.3014]
[1746933251092,0.24627655,664.67,663.57,0.3014]
[1746933251395,0.24627655,664.73,663.57,0.3014]
[1746933251896,1.93593394,664.72,663.57,0.3014]
[1746933252298,0.24627655,664.71,663.57,0.3014]
[1746933253999,0.24627655,664.7,663.57,0.3014]
[1746933254296,0.24627655,664.69,663.57,0.3014]
[1746933254593,0.24627655,664.68,663.57,0.3014]
[1746933254997,0.24627655,664.67,663.57,0.3014]
[1746933255692,0.24627655,664.66,663.57,0.3014]
[1746933255898,0.24627655,664.65,663.57,0.3014]
[1746933256398,0.24627655,664.64,663.57,0.3014]
[1746933256592,0.24627655,664.63,663.57,0.3014]
[1746933256899,1.93593394,664.7,663.57,0.3014]
[1746933257200,0.24640393,664.69,663.57,0.3014]
[1746933257801,0.24640393,664.68,663.57,0.3014]
[1746933258098,0.24640393,664.67,663.57,0.3014]
[1746933258299,0.24640393,664.66,663.57,0.3014]
[1746933258700,0.24640393,664.65,663.57,0.3014]
[1746933259000,0.24640393,664.64,663.57,0.3014]
[1746933259400,0.24640393,664.63,663.57,0.3014]
[1746933259701,0.24640393,664.62,663.58,0.481]
[1746933260299,0.24640393,664.61,663.58,0.481]
[1746933260799,0.24640393,664.6,663.58,0.481]
[1746933261201,0.24640393,664.59,663.58,0.481]
[1746933261600,0.24640393,664.58,663.58,0.481]
[1746933261799,0.24640393,664.57,663.58,0.481]
[1746933262201,0.24640393,664.56,663.58,0.481]
[1746933262602,0.24640393,664.55,663.58,0.481]
[1746933263002,0.24640393,664.54,663.58,0.481]
[1746933263998,0.24640393,664.53,663.58,0.481]
[1746933264500,0.24640393,664.52,663.58,0.481]
[1746933264704,0.24640393,664.51,663.58,0.481]
[1746933265103,0.24640393,664.5,663.58,0.481]
[1746933265502,0.24640393,664.49,663.58,0.481]
[1746933265803,0.24640393,664.48,663.58,0.481]
[1746933266103,0.24640393,664.47,663.58,0.481]
[1746933266406,1.93593394,664.47,663.58,0.481]
[1746933266703,0.24639364,664.46,663.58,0.481]
[1746933267003,0.24639364,664.45,663.58,0.481]
[1746933267307,0.24639364,664.44,663.58,0.481]
[1746933267707,0.24639364,664.43,663.58,0.481]
[1746933268105,0.24639364,664.42,663.58,0.481]
[1746933268502,0.24639364,664.41,663.58,0.481]
[1746933268904,0.24639364,664.4,663.58,0.481]
[1746933269307,0.24639364,664.39,663.58,0.481]
[1746933269704,0.24639364,664.38,663.58,0.481]
[1746933270002,0.24639364,664.37,663.58,0.481]
[1746933270307,0.24639364,664.36,663.58,0.481]
[1746933270707,0.24639364,664.36,663.59,0.88]
[1746933270902,0.24639364,664.35,663.59,0.88]
[1746933271410,0.24639364,664.34,663.59,0.88]
[1746933271909,0.24639364,664.33,663.59,0.88]
[1746933272308,0.24639364,664.32,663.59,0.88]
[1746933272609,0.24639364,664.31,663.59,0.88]
[1746933272910,0.24639364,664.3,663.59,0.88]
[1746933273311,0.24639364,664.29,663.59,0.88]
[1746933273510,0.24639364,664.28,663.59,0.88]
[1746933274011,0.24639364,664.27,663.59,0.88]
[1746933274208,0.24639364,664.55,663.59,0.88]
[1746933274613,0.24639364,664.54,663.59,0.88]
[1746933275012,0.24639364,664.53,663.59,0.88]
[1746933275313,0.24639364,664.52,663.6,0.49]
[1746933276107,0.24639364,664.51,663.6,0.49]
[1746933276510,0.24639364,664.5,663.6,0.49]
[1746933277014,0.24639364,664.49,663.6,0.49]
[1746933277315,0.24639364,664.48,663.6,0.49]
[1746933277708,0.24639364,664.47,663.6,0.49]
[1746933278113,0.24639364,664.46,663.6,0.49]
[1746933278515,0.24639364,664.45,663.6,0.49]
[1746933278913,0.24639364,664.52,663.6,0.49]
[1746933279214,0.24639364,664.51,663.6,0.49]
[1746933279514,0.24639364,664.52,663.6,0.49]
[1746933279813,0.24639364,664.51,663.6,0.49]
[1746933280120,1.93593394,664.36,663.6,0.49]
[1746933280714,0.24639364,664.35,663.6,0.49]
[1746933282115,0.24639364,664.79,663.6,0.49]
[1746933282314,0.3008514,664.78,663.6,0.49]
[1746933282614,0.54724504,664.78,663.6,0.49]
[1746933282917,0.24639364,664.77,663.6,0.49]
[1746933283118,0.30086046,664.76,663.6,0.49]
[1746933283416,0.24639364,664.75,663.6,0.49]
[1746933283917,0.24639364,664.74,663.6,0.49]
[1746933284117,0.24639364,664.73,663.6,0.49]
[1746933284518,0.24639364,664.72,663.6,0.49]
[1746933285017,0.24639364,664.71,663.6,0.49]
[1746933285318,0.24639364,664.7,663.6,0.49]
[1746933285717,0.24639364,664.69,663.6,0.49]
[1746933286117,1.93593394,664.6,663.61,0.489]
[1746933286417,0.24639364,664.59,663.61,0.489]
[1746933286717,0.24639364,664.58,663.61,0.489]
[1746933287322,0.24639364,664.57,663.61,0.489]
[1746933287517,0.24639364,664.56,663.61,0.489]
[1746933287920,0.24639364,664.55,663.61,0.489]
[1746933288319,0.24639364,664.54,663.61,0.489]
[1746933288719,0.24639364,664.53,663.61,0.489]
[1746933289016,1.93593394,664.49,663.61,0.489]
[1746933289613,0.2465037,664.48,663.61,0.489]
[1746933289920,0.2465037,664.47,663.61,0.489]
[1746933290316,0.2465037,664.46,663.61,0.489]
[1746933290520,0.2465037,664.46,663.61,0.998]
[1746933290720,0.2465037,664.45,663.61,0.998]
[1746933291323,0.2465037,664.44,663.61,0.998]
[1746933291824,0.2465037,664.43,663.61,0.998]
[1746933292123,0.2465037,664.42,663.61,0.998]
[1746933292319,1.93593394,664.17,663.61,0.998]
[1746933293322,0.24647291,664.16,663.61,0.998]
[1746933293725,0.24647291,664.15,663.61,0.998]
[1746933294225,0.24647291,664.16,663.61,0.998]
[1746933294627,2.18240685,664.16,663.61,0.998]
[1746933295028,0.24647291,664.15,663.61,0.998]
[1746933297028,0.24647291,664.35,663.61,0.998]
[1746933297521,0.24647291,664.34,663.61,0.998]
[1746933297927,0.24647291,664.33,663.61,0.998]
[1746933298427,0.24647291,664.32,663.61,0.998]
[1746933298723,2.18240685,664.32,663.61,0.998]
[1746933299127,0.24647291,664.31,663.61,0.509]
[1746933299723,0.24647291,664.3,663.61,0.509]
[1746933299924,0.24647291,664.29,663.61,0.509]
[1746933300328,0.24647291,664.28,663.61,0.509]
[1746933300928,0.24647291,664.27,663.61,0.509]
[1746933301527,0.24647291,664.26,663.61,0.509]
[1746933302127,0.24647291,664.25,663.61,0.509]
[1746933302523,0.24647291,664.24,663.61,0.509]
[1746933302826,0.24647291,664.23,663.61,0.509]
[1746933303226,0.24647291,664.22,663.61,0.509]
[1746933303528,0.24647291,664.21,663.61,0.509]
[1746933303922,0.24647291,664.2,663.61,0.509]
[1746933304222,0.24647291,664.19,663.61,0.509]
[1746933304829,0.24647291,664.18,663.61,0.509]
[1746933305125,0.24647291,664.17,663.61,0.509]
[1746933305528,0.24647291,664.16,663.61,0.509]
[1746933305928,0.24647291,664.15,663.61,0.509]
[1746933306327,0.24647291,664.14,663.61,0.509]
[1746933306629,0.24647291,664.13,663.61,0.509]
[1746933306928,0.24647291,664.12,663.61,0.509]
[1746933307329,0.24647291,664.11,663.61,0.509]
[1746933307729,0.24647291,664.1,663.61,0.509]
[1746933308024,0.24647291,664.09,663.61,0.509]
[1746933308727,0.24647291,664.08,663.61,0.509]
[1746933308923,0.24647291,664.07,663.61,0.509]
[1746933309330,0.24647291,664.06,663.61,0.509]
[1746933309728,1.93593394,664.05,663.61,0.509]
[1746933310033,2.18240685,664.05,663.61,0.509]
[1746933310233,0.24647291,664.04,663.61,0.509]
[1746933312734,0.24647291,664.36,663.61,0.509]
[1746933312929,0.24647291,664.35,663.61,0.509]
[1746933313334,0.24647291,664.36,663.61,0.509]
[1746933313936,1.93593394,664.32,663.61,0.509]
[1746933314235,0.24647291,664.31,663.61,0.509]
[1746933314834,1.93593394,664.32,663.61,0.509]
[1746933315137,0.24642968,664.31,663.61,0.509]
[1746933317336,0.24642968,664.61,663.61,0.509]
[1746933317736,0.24642968,664.6,663.61,0.509]
[1746933318237,0.24642968,664.59,663.61,0.509]
[1746933318635,0.24642968,664.58,663.61,0.509]
[1746933318931,0.24642968,664.57,663.61,0.509]
[1746933319236,0.24642968,664.56,663.61,0.509]
[1746933319938,0.24642968,664.55,663.61,0.509]
[1746933320439,0.24642968,664.54,663.61,0.509]
[1746933320635,0.24642968,664.54,663.54,0.30141362]
[1746933320833,0.24642968,664.53,663.54,0.30141362]
[1746933321140,0.24642968,664.52,663.54,0.30141362]
[1746933321539,0.24642968,664.51,663.54,0.30141362]
[1746933321740,1.93593394,664.29,663.54,0.30141362]
[1746933322241,0.24642968,664.28,663.54,0.30141362]
[1746933322636,0.24642968,664.27,663.54,0.30141362]
[1746933322836,0.24642968,664.28,663.54,0.30141362]
[1746933324847,0.24642968,664.47,663.54,0.30141362]
[1746933325047,0.30099629,664.46,663.54,0.30141362]
[1746933325449,0.24642968,664.45,663.54,0.30141362]
[1746933325942,0.5474305,664.45,663.54,0.30141362]
[1746933326147,0.24642968,664.44,663.54,0.30141362]
[1746933327947,0.30100988,664.43,663.54,0.30141362]
[1746933328247,0.24642968,664.42,663.54,0.30141362]
[1746933328447,0.30101894,664.41,663.54,0.30141362]
[1746933328647,0.24642968,664.4,663.54,0.30141362]
[1746933328850,0.30102801,664.39,663.54,0.30141362]
[1746933329550,0.24642968,664.38,663.54,0.30141362]
[1746933329849,0.30103707,664.37,663.54,0.30141362]
[1746933330050,0.24642968,664.36,663.54,0.30141362]
[1746933330251,0.54747128,664.36,663.54,0.30141362]
[1746933330550,0.3010416,664.36,663.54,0.30141362]
[1746933330751,0.24653475,664.35,663.54,0.30141362]
[1746933332153,0.24653475,664.34,663.54,0.30141362]
[1746933332452,0.54758541,664.34,663.54,0.30141362]
[1746933332651,0.24653475,664.33,663.54,0.30141362]
[1746933332850,0.24653475,664.32,663.54,0.30141362]
[1746933333249,0.24653475,664.31,663.54,0.30141362]
[1746933333449,1.93593394,664.22,663.54,0.30141362]
[1746933334055,0.24653475,664.21,663.54,0.30141362]
[1746933334458,0.24653475,664.2,663.54,0.30141362]
[1746933334756,0.24653475,664.19,663.54,0.30141362]
[1746933335156,0.24653475,664.18,663.54,0.09668943]
[1746933335350,0.30112772,664.17,663.54,0.09668943]
[1746933335754,0.24653475,664.16,663.54,0.09668943]
[1746933335953,0.30113679,664.15,663.54,0.09668943]
[1746933336156,1.93593394,663.74,663.54,0.09668943]
[1746933336458,0.24653475,663.73,663.54,0.09668943]
[1746933337856,1.93593394,663.74,663.54,0.09668943]
[1746933338056,0.24649873,663.73,663.54,0.09668943]
[1746933338758,0.24649873,663.88,663.54,0.09668943]
[1746933339254,0.24649873,663.87,663.54,0.09668943]
[1746933339561,0.24649873,663.86,663.54,0.09668943]
[1746933339961,0.24649873,663.85,663.54,0.09668943]
[1746933340260,0.24649873,663.84,663.54,0.09668943]
[1746933340858,0.24649873,663.83,663.54,0.09668943]
[1746933341160,0.24649873,663.83,663.51,0.716]
[1746933341358,0.24649873,663.82,663.48,0.19016173]
[1746933341755,0.24649873,663.81,663.48,0.19016173]
[1746933341961,1.93593394,663.87,663.48,0.19016173]
[1746933341962,0.24649873,663.8,663.48,0.19016173]
[1746933342361,1.93593394,663.76,663.48,0.19016173]
[1746933342560,0.24651911,663.75,663.48,0.19016173]
[1746933345063,0.24651911,663.9,663.48,0.19016173]
[1746933345362,0.24651911,663.89,663.48,0.19016173]
[1746933345658,0.24651911,663.9,663.48,0.19016173]
[1746933347264,0.24651911,663.98,663.48,0.19016173]
[1746933348065,0.24651911,663.97,663.48,0.19016173]
[1746933348965,0.24651911,663.96,663.48,0.19016173]
[1746933349365,0.24651911,663.95,663.48,0.19016173]
[1746933349558,0.24651911,663.94,663.48,0.19016173]
[1746933349861,0.30113679,664.15,663.48,0.19016173]
[1746933349862,0.24651911,663.93,663.48,0.19016173]
[1746933350068,0.24651911,664.08,663.48,0.19016173]
[1746933350366,0.24651911,664.07,663.48,0.19016173]
[1746933350567,0.24651911,664.06,663.48,0.19016173]
[1746933350867,0.24651911,664.08,663.48,0.19016173]
[1746933353870,0.24651911,664.14,663.48,0.19016173]
[1746933354066,0.30113679,664.15,663.48,0.19016173]
[1746933354367,0.24625331,664.14,663.48,0.19016173]
[1746933357673,0.30113679,664.15,663.48,0.19016173]
[1746933358176,0.24623984,664.14,663.48,0.19016173]
[1746933358371,0.24623984,664.13,663.48,0.19016173]
[1746933358769,0.24623984,664.12,663.48,0.19016173]
[1746933358969,0.24623984,664.11,663.48,0.19016173]
[1746933359169,0.24623984,664.1,663.48,0.19016173]
[1746933359373,0.24623984,664.09,663.48,0.19016173]
[1746933359575,0.24623984,664.08,663.48,0.19016173]
[1746933359775,1.93593394,664.01,663.48,0.19016173]
[1746933360071,0.24623984,664.0,663.48,0.19016173]
[1746933360274,0.24623984,663.99,663.48,0.19016173]
[1746933360480,0.24623984,663.98,663.48,0.19016173]
[1746933360771,0.24623984,664.0,663.48,0.19016173]
[1746933363282,0.24623984,663.99,663.48,0.19016173]
[1746933363481,0.24623984,663.98,663.48,0.19016173]
[1746933363682,0.24623984,663.97,663.48,0.19016173]
[1746933363883,0.24623984,664.14,663.48,0.19016173]
[1746933364178,0.24623984,664.13,663.48,0.19016173]
[1746933364382,0.24623984,664.12,663.48,0.19016173]
[1746933364682,0.24623984,664.11,663.48,0.19016173]
[1746933364882,1.93593394,664.03,663.48,0.19016173]
[1746933365285,0.24623984,664.02,663.48,0.19016173]
[1746933365681,1.93593394,664.03,663.48,0.19016173]
[1746933365682,0.24623984,664.01,663.48,0.19016173]
[1746933365982,0.24623984,664.0,663.48,0.19016173]
[1746933366385,0.24623984,663.99,663.48,0.19016173]
[1746933366685,0.24623984,663.98,663.48,0.19016173]
[1746933366879,0.24623984,663.97,663.48,0.19016173]
[1746933367284,0.24623984,663.96,663.48,0.19016173]
[1746933367684,0.24623984,664.14,663.48,0.19016173]
[1746933367885,0.24623984,664.13,663.48,0.19016173]
[1746933368085,0.24623984,664.12,663.48,0.19016173]
[1746933368286,0.24623984,664.11,663.48,0.19016173]
[1746933368587,0.24623984,664.1,663.48,0.19016173]
[1746933368785,0.24623984,664.09,663.48,0.19016173]
[1746933368987,0.24623984,664.14,663.48,0.19016173]
[1746933369184,0.24623984,664.13,663.48,0.19016173]
[1746933369386,1.93593394,664.01,663.48,0.19016173]
[1746933369688,0.24623984,664.0,663.48,0.19016173]
[1746933371688,0.24623984,664.14,663.48,0.19016173]
[1746933371887,0.30113679,664.15,663.48,0.19016173]
[1746933371888,0.24623984,664.13,663.48,0.19016173]
[1746933372089,0.24623984,664.12,663.48,0.19016173]
[1746933372289,0.24623984,664.11,663.48,0.19016173]
[1746933372490,0.24623984,664.1,663.48,0.19016173]
[1746933372690,0.24623984,664.09,663.48,0.19016173]
[1746933372990,0.30113679,664.15,663.48,0.19016173]
[1746933373190,0.24628003,664.14,663.48,0.19016173]
[1746933373391,0.24628003,664.13,663.48,0.19016173]
[1746933373586,0.24628003,664.12,663.48,0.19016173]
[1746933373788,0.24628003,664.11,663.48,0.19016173]
[1746933373986,0.24628003,664.1,663.48,0.19016173]
[1746933374187,0.24628003,664.09,663.48,0.19016173]
[1746933374386,0.24628003,664.08,663.48,0.19016173]
[1746933374587,0.24628003,664.07,663.48,0.19016173]
[1746933374790,0.24628003,664.06,663.48,0.19016173]
[1746933374991,0.24628003,664.14,663.48,0.19016173]
[1746933375191,2.18221397,664.14,663.48,0.19016173]
[1746933375391,0.24628003,664.13,663.48,0.19016173]
[1746933378494,0.24628003,664.14,663.48,0.19016173]
[1746933378892,0.24628003,664.13,663.48,0.19016173]
[1746933379187,0.24628003,664.12,663.48,0.19016173]
[1746933379394,0.24628003,664.11,663.48,0.19016173]
[1746933379588,0.24628003,664.1,663.48,0.19016173]
[1746933379893,0.24628003,664.09,663.48,0.19016173]
[1746933380093,0.24628003,664.08,663.48,0.19016173]
[1746933380287,0.24628003,664.07,663.48,0.19016173]
[1746933380490,1.93593394,663.95,663.48,0.19016173]
[1746933380790,0.24628003,663.94,663.48,0.19016173]
[1746933381695,1.93593394,663.95,663.48,0.19016173]
[1746933381889,0.2463186,663.94,663.48,0.19016173]
[1746933382295,0.2463186,663.96,663.48,0.19016173]
[1746933383695,1.93593394,663.94,663.48,0.19016173]
[1746933383890,0.2463186,663.93,663.48,0.19016173]
[1746933384995,0.2463186,663.92,663.48,0.19016173]
[1746933385195,0.2463186,663.91,663.48,0.19016173]
[1746933385496,0.2463186,663.9,663.48,0.19016173]
[1746933385696,1.93593394,663.82,663.48,0.19016173]
[1746933385893,0.2463186,663.81,663.48,0.19016173]
[1746933387199,2.18225254,663.81,663.48,0.19016173]
[1746933387596,0.2463186,663.8,663.48,0.19016173]
[1746933389300,2.18225254,663.8,663.48,0.19016173]
[1746933389492,0.2463186,663.79,663.48,0.19016173]
[1746933389800,0.2463186,663.79,663.48,0.06157142]
[1746933390899,0.2463186,663.78,663.48,0.06157142]
[1746933391101,1.93593394,663.8,663.48,0.06157142]
[1746933391295,0.24639215,663.79,663.48,0.06157142]
[1746933391499,1.93593394,663.73,663.48,0.06157142]
[1746933391794,0.24639215,663.72,663.48,0.06157142]
[1746933393405,2.18232609,663.72,663.48,0.06157142]
[1746933393704,0.24639215,663.71,663.48,0.06157142]
[1746933396506,0.24639215,663.77,663.48,0.06157142]
[1746933399010,0.24639215,663.81,663.48,0.06157142]
[1746933400912,0.24639215,664.14,663.48,0.06157142]
[1746933401314,0.24639215,664.13,663.48,0.06157142]
[1746933401614,0.24639215,664.12,663.48,0.06157142]
[1746933402008,0.24639215,664.11,663.48,0.06157142]
[1746933402411,0.24639215,664.1,663.48,0.06157142]
[1746933402815,0.24639215,664.09,663.48,0.06157142]
[1746933403113,0.24639215,664.08,663.48,0.06157142]
[1746933403417,0.24639215,664.07,663.48,0.06157142]
[1746933403919,0.24639215,664.06,663.48,0.06157142]
[1746933404119,1.93593394,663.97,663.48,0.06157142]
[1746933404319,1.93593394,663.97,663.49,0.759]
[1746933404615,0.24639215,663.96,663.49,0.759]
[1746933405921,0.24639215,663.97,663.49,0.759]
[1746933407018,0.24639215,663.96,663.49,0.759]
[1746933407423,0.24639215,663.97,663.49,0.759]
[1746933407824,0.24639215,663.96,663.49,0.759]
[1746933408124,0.24639215,663.97,663.49,0.759]
[1746933408426,2.18232609,663.97,663.49,0.759]
[1746933408620,0.24639215,663.96,663.49,0.759]
[1746933410425,0.24639215,663.95,663.49,0.759]
[1746933410825,0.24639215,663.94,663.49,0.759]
[1746933411224,0.24639215,663.93,663.49,0.759]
[1746933411625,0.24639215,663.92,663.49,0.759]
[1746933412023,0.24639215,663.91,663.49,0.759]
[1746933412427,0.24639215,663.9,663.49,0.759]
[1746933412929,0.24639215,663.89,663.49,0.759]
[1746933413229,0.24639215,663.95,663.49,0.759]
[1746933414327,1.93593394,663.91,663.49,0.759]
[1746933414825,0.24639215,663.9,663.49,0.759]
[1746933415430,1.93593394,663.91,663.49,0.759]
[1746933415731,0.2465352,663.9,663.49,0.759]
[1746933417433,0.2465352,664.14,663.49,0.759]
[1746933417633,0.2465352,664.13,663.49,0.759]
[1746933417932,0.2465352,664.12,663.49,0.759]
[1746933418134,0.2465352,664.12,663.5,0.719]
[1746933418334,0.2465352,664.14,663.5,0.719]
[1746933419535,0.2465352,664.14,663.51,0.964]
[1746933423238,0.30113679,664.15,663.51,0.964]
[1746933423438,0.24634631,664.14,663.51,0.964]
[1746933426342,0.30113679,664.15,663.51,0.964]
[1746933426639,0.24625729,664.14,663.51,0.964]
[1746933427342,0.24625729,664.13,663.51,0.964]
[1746933427638,0.24625729,664.14,663.51,0.964]
[1746933429240,2.23707073,664.15,663.51,0.964]
[1746933429646,0.24618704,664.14,663.51,0.964]
[1746933431847,0.24618704,664.13,663.51,0.964]
[1746933432147,0.24618704,664.12,663.51,0.964]
[1746933432347,0.24618704,664.12,663.49,0.75293571]
[1746933432642,0.24618704,664.11,663.49,0.75293571]
[1746933433848,0.24618704,664.1,663.49,0.75293571]
[1746933434151,0.24618704,664.09,663.49,0.75293571]
[1746933434556,0.24618704,664.08,663.49,0.75293571]
[1746933434950,0.24618704,664.07,663.49,0.75293571]
[1746933435349,0.24618704,664.06,663.49,0.75293571]
[1746933435652,0.24618704,664.05,663.49,0.75293571]
[1746933435853,1.93593394,663.94,663.49,0.75293571]
[1746933436557,0.24618704,663.93,663.49,0.75293571]
[1746933436851,0.24618704,663.92,663.49,0.75293571]
[1746933437157,0.24618704,663.91,663.49,0.75293571]
[1746933437459,0.24618704,663.9,663.49,0.75293571]
[1746933437954,0.24618704,663.89,663.49,0.75293571]
[1746933438159,1.93593394,663.9,663.49,0.75293571]
[1746933438457,0.24615807,663.89,663.49,0.75293571]
[1746933438757,0.24615807,663.88,663.49,0.75293571]
[1746933439056,0.24615807,663.87,663.49,0.75293571]
[1746933439359,0.24615807,663.86,663.49,0.75293571]